[Event "CZE-ch Youth G10-G12-G14 2022"]
[Site "Luhacovice"]
[Date "2022.03.12"]
[Round "1.1"]
[White "Vancakova, Veronika"]
[Black "Melicharova Veronika"]
[Result "1-0"]
[ECO "D06"]
[WhiteElo "1300"]
[BlackElo "1000"]
[Annotator "NA"]
[PlyCount "57"]
[EventDate "2022.03.12"]
[EventType "swiss"]
[EventCountry "CZE"]
[SourceTitle "playchess.com"]
[Source "ChessBase"]
[SourceQuality "1"]
[TimeControl "40/5400+30:1800+30"]

1. d4 {[%emt 0:00:02]} d5 {[%emt 0:00:04]} 2. c4 {[%emt 0:00:03]} Nf6 {[%emt 0:00:30]} 3. cxd5 {[%emt 0:00:05]} Nxd5 {[%emt 0:00:24]} 4. e4 {[%emt 0:00:06]} Nf6 {[%emt 0:00:41]} 5. Nc3 {[%emt 0:00:02]} c5 {[%emt 0:00:36]} 6. dxc5 {[%emt 0:00:13]} Nc6 {[%emt 0:00:12]} 7. Qxd8+ {[%emt 0:00:09]} Nxd8 {[%emt 0:00:16]} 8. Be3 {[%emt 0:00:45]} e5 {[%emt 0:00:22]} 9. Bb5+ {[%emt 0:02:12]} Nc6 {[%emt 0:00:23]} 10. Nd5 {[%emt 0:03:22]} Nxd5 {[%emt 0:03:35]} 11. exd5 {[%emt 0:00:08]} a6 {[%emt 0:00:35]} 12. Bxc6+ {[%emt 0:00:39]} bxc6 {[%emt 0:01:09]} 13. d6 {[%emt 0:03:34]} Bf5 {[%emt 0:01:44]} 14. Nf3 {[%emt 0:01:18]} e4 {[%emt 0:02:06]} 15. Nd4 {[%emt 0:00:04]} g6 {[%emt 0:00:51]} 16. O-O {[%emt 0:01:22]} Bg7 {[%emt 0:00:26]} 17. Rab1 {[%emt 0:00:52]} O-O {[%emt 0:01:55]} 18. Nxc6 {[%emt 0:00:40]} Be6 {[%emt 0:01:38]} 19. b3 {[%emt 0:00:48]} a5 {[%emt 0:03:10]} 20. Bd4 {[%emt 0:02:04]} f6 {[%emt 0:01:03]} 21. Be3 {[%emt 0:01:24]} a4 {[%emt 0:04:38]} 22. Nd4 {[%emt 0:01:51]} Rfe8 {[%emt 0:00:32]} 23. Nxe6 {[%emt 0:00:11]} Rxe6 {[%emt 0:00:21]} 24. b4 {[%emt 0:00:17]} f5 {[%emt 0:01:13]} 25. Rfd1 {[%emt 0:02:08]} Rd8 {[%emt 0:02:23]} 26. b5 {[%emt 0:00:52]} a3 {[%emt 0:01:14]} 27. Rb3 {[%emt 0:04:21]} Bb2 {[%emt 0:02:19]} 28. Bf4 {[%emt 0:01:03]} g5 {[%emt 0:07:30]} 29. Bxg5 {[%emt 0:00:22]} 1-0

[Event "CZE-ch Youth G10-G12-G14 2022"]
[Site "Luhacovice"]
[Date "2022.03.12"]
[Round "1.2"]
[White "Romanko Diana"]
[Black "Martikanova Amalie"]
[Result "1-0"]
[ECO "C53"]
[WhiteElo "1000"]
[BlackElo "1245"]
[Annotator "NA"]
[PlyCount "63"]
[EventDate "2022.03.12"]
[EventType "swiss"]
[EventCountry "CZE"]
[SourceTitle "playchess.com"]
[Source "ChessBase"]
[SourceQuality "1"]
[TimeControl "40/5400+30:1800+30"]

1. e4 {[%emt 0:00:34]} e5 {[%emt 0:00:10]} 2. Nf3 {[%emt 0:00:13]} Nc6 {[%emt 0:00:19]} 3. Bc4 {[%emt 0:00:22]} Bc5 {[%emt 0:00:44]} 4. c3 {[%emt 0:00:50]} Nf6 {[%emt 0:00:26]} 5. d4 {[%emt 0:00:29]} exd4 {[%emt 0:00:34]} 6. cxd4 {[%emt 0:00:51]} Bb4+ {[%emt 0:00:32]} 7. Nc3 {[%emt 0:00:19]} d6 {[%emt 0:01:29]} 8. O-O {[%emt 0:01:56]} Bg4 {[%emt 0:01:36]} 9. d5 {[%emt 0:03:28]} Ne5 {[%emt 0:01:24]} 10. Qa4+ {[%emt 0:01:58]} c6 {[%emt 0:01:13]} 11. Nxe5 {[%emt 0:02:48]} Bxc3 {[%emt 0:02:49]} 12. Nxg4 {[%emt 0:04:15]} Nxg4 {[%emt 0:01:40]} 13. bxc3 {[%emt 0:01:22]} b5 {[%emt 0:01:16]} 14. Bxb5 {[%emt 0:01:30]} O-O {[%emt 0:01:43]} 15. Bxc6 {[%emt 0:01:55]} Qh4 {[%emt 0:01:40]} 16. h3 {[%emt 0:02:37]} Rac8 {[%emt 0:01:00]} 17. Bd7 {[%emt 0:02:52]} Rxc3 {[%emt 0:02:38]} 18. Bxg4 {[%emt 0:01:05]} h5 {[%emt 0:01:32]} 19. Qd4 {[%emt 0:02:20]} Rc7 {[%emt 0:02:33]} 20. Bb2 {[%emt 0:01:03]} f6 {[%emt 0:01:28]} 21. Be6+ {[%emt 0:00:55]} Kh8 {[%emt 0:01:27]} 22. Bc1 {[%emt 0:01:50]} f5 {[%emt 0:04:17]} 23. g3 {[%emt 0:03:14]} Qe7 {[%emt 0:01:54]} 24. Bxf5 {[%emt 0:00:59]} h4 {[%emt 0:01:56]} 25. g4 {[%emt 0:01:16]} Qf7 {[%emt 0:01:22]} 26. Bb2 {[%emt 0:01:21]} Qe8 {[%emt 0:04:11]} 27. Rac1 {[%emt 0:02:20]} Rb7 {[%emt 0:01:21]} 28. Ba1 {[%emt 0:02:16]} Qb5 {[%emt 0:01:52]} 29. Qe3 {[%emt 0:06:01]} Qe8 {[%emt 0:01:22]} 30. Qh6+ {[%emt 0:03:06]} Kg8 {[%emt 0:00:37]} 31. Qh7+ {[%emt 0:00:34]} Kf7 {[%emt 0:01:08]} 32. Qxg7# {[%emt 0:00:42]} 1-0

[Event "CZE-ch Youth G10-G12-G14 2022"]
[Site "Luhacovice"]
[Date "2022.03.12"]
[Round "1.3"]
[White "Kusova, Nikola"]
[Black "Rudova Jana"]
[Result "1-0"]
[ECO "C28"]
[WhiteElo "1227"]
[BlackElo "1000"]
[Annotator "NA"]
[PlyCount "87"]
[EventDate "2022.03.12"]
[EventType "swiss"]
[EventCountry "CZE"]
[SourceTitle "playchess.com"]
[Source "ChessBase"]
[SourceQuality "1"]
[TimeControl "40/5400+30:1800+30"]

1. e4 {[%emt 0:00:06]} e5 {[%emt 0:00:08]} 2. Nc3 {[%emt 0:00:11]} Nf6 {[%emt 0:00:27]} 3. Bc4 {[%emt 0:00:30]} Nc6 {[%emt 0:00:23]} 4. d3 {[%emt 0:00:34]} Bb4 {[%emt 0:00:21]} 5. f4 {[%emt 0:00:29]} d6 {[%emt 0:00:30]} 6. Nf3 {[%emt 0:01:21]} Bg4 {[%emt 0:00:39]} 7. O-O {[%emt 0:01:05]} O-O {[%emt 0:00:21]} 8. Be3 {[%emt 0:01:04]} Na5 {[%emt 0:02:48]} 9. Bb3 {[%emt 0:01:43]} Nxb3 {[%emt 0:00:49]} 10. axb3 {[%emt 0:00:34]} Qe7 {[%emt 0:02:47]} 11. fxe5 {[%emt 0:02:33]} dxe5 {[%emt 0:00:43]} 12. Rxa7 {[%emt 0:00:28]} Rxa7 {[%emt 0:02:42]} 13. Bxa7 {[%emt 0:00:11]} b6 {[%emt 0:00:30]} 14. Nd5 {[%emt 0:07:26]} Nxd5 {[%emt 0:00:43]} 15. exd5 {[%emt 0:00:03]} Qc5+ {[%emt 0:00:40]} 16. d4 {[%emt 0:03:26]} Qxd5 {[%emt 0:04:26]} 17. c4 {[%emt 0:00:31]} Qa5 {[%emt 0:04:08]} 18. Qa1 {[%emt 0:00:44]} Qxa1 {[%emt 0:00:34]} 19. Rxa1 {[%emt 0:00:12]} e4 {[%emt 0:04:05]} 20. Ne5 {[%emt 0:00:18]} Bf5 {[%emt 0:01:53]} 21. Nc6 {[%emt 0:01:01]} Bd6 {[%emt 0:01:08]} 22. c5 {[%emt 0:00:31]} Bd7 {[%emt 0:01:24]} 23. cxd6 {[%emt 0:01:45]} Bxc6 {[%emt 0:00:20]} 24. dxc7 {[%emt 0:00:27]} Rc8 {[%emt 0:00:38]} 25. Bxb6 {[%emt 0:00:42]} Bd5 {[%emt 0:00:26]} 26. b4 {[%emt 0:01:06]} Kf8 {[%emt 0:00:24]} 27. Rc1 {[%emt 0:02:01]} Ke7 {[%emt 0:00:22]} 28. Rc5 {[%emt 0:02:16]} Kd6 {[%emt 0:03:19]} 29. Kf2 {[%emt 0:02:11]} h5 {[%emt 0:01:06]} 30. b5 {[%emt 0:01:47]} g6 {[%emt 0:00:35]} 31. Ba5 {[%emt 0:00:59]} e3+ {[%emt 0:04:12]} 32. Kxe3 {[%emt 0:00:38]} Bxg2 {[%emt 0:00:18]} 33. Bb4 {[%emt 0:00:59]} Ke6 {[%emt 0:00:23]} 34. Re5+ {[%emt 0:01:16]} Kf6 {[%emt 0:00:37]} 35. b6 {[%emt 0:02:06]} g5 {[%emt 0:01:01]} 36. Be7+ {[%emt 0:00:35]} Kg6 {[%emt 0:00:37]} 37. Rxg5+ {[%emt 0:00:28]} Kh6 {[%emt 0:00:30]} 38. Rxg2 {[%emt 0:00:26]} f5 {[%emt 0:00:33]} 39. b7 {[%emt 0:01:00]} Rxc7 {[%emt 0:00:22]} 40. Bf8+ {[%emt 0:00:28]} Rg7 {[%emt 0:00:00]} 41. b8=Q {[%emt 0:28:52]} f4+ {[%emt 0:30:25]} 42. Qxf4+ {[%emt 0:00:36]} Kh7 {[%emt 0:00:42]} 43. Rxg7+ {[%emt 0:00:21]} Kh8 {[%emt 0:00:29]} 44. Qh6# {[%emt 0:00:09]} 1-0

[Event "CZE-ch Youth G10-G12-G14 2022"]
[Site "Luhacovice"]
[Date "2022.03.12"]
[Round "1.4"]
[White "Silhankova Simona"]
[Black "Lackova, Lucie"]
[Result "0-1"]
[ECO "C42"]
[WhiteElo "1000"]
[BlackElo "1142"]
[Annotator "NA"]
[PlyCount "52"]
[EventDate "2022.03.12"]
[EventType "swiss"]
[EventCountry "CZE"]
[SourceTitle "playchess.com"]
[Source "ChessBase"]
[SourceQuality "1"]
[TimeControl "40/5400+30:1800+30"]

1. e4 {[%emt 0:00:07]} e5 {[%emt 0:00:05]} 2. Nf3 {[%emt 0:00:27]} Nc6 {[%emt 0:00:20]} 3. Bc4 {[%emt 0:00:27]} Nf6 {[%emt 0:00:17]} 4. Nc3 {[%emt 0:01:28]} Bb4 {[%emt 0:01:03]} 5. O-O {[%emt 0:00:36]} O-O {[%emt 0:00:10]} 6. d3 {[%emt 0:01:22]} d6 {[%emt 0:00:25]} 7. h3 {[%emt 0:01:48]} h6 {[%emt 0:00:27]} 8. Nh4 {[%emt 0:01:08]} Be6 {[%emt 0:01:32]} 9. Bxe6 {[%emt 0:01:09]} fxe6 {[%emt 0:00:34]} 10. Qf3 {[%emt 0:01:22]} Nd4 {[%emt 0:06:25]} 11. Qg3 {[%emt 0:01:19]} Bxc3 {[%emt 0:01:05]} 12. Kh1 {[%emt 0:01:50]} Ne2 {[%emt 0:01:49]} 13. Qg6 {[%emt 0:02:01]} Nxc1 {[%emt 0:00:53]} 14. Raxc1 {[%emt 0:01:23]} Bd4 {[%emt 0:01:12]} 15. Rce1 {[%emt 0:01:15]} Qe7 {[%emt 0:04:46]} 16. c3 {[%emt 0:01:42]} Bb6 {[%emt 0:00:16]} 17. d4 {[%emt 0:01:14]} exd4 {[%emt 0:02:00]} 18. cxd4 {[%emt 0:01:23]} Bxd4 {[%emt 0:01:23]} 19. Nf5 {[%emt 0:01:07]} exf5 {[%emt 0:02:59]} 20. exf5 {[%emt 0:00:29]} Qd7 {[%emt 0:02:32]} 21. Re2 {[%emt 0:00:52]} Qb5 {[%emt 0:02:32]} 22. Rfe1 {[%emt 0:00:46]} Rae8 {[%emt 0:02:43]} 23. Rxe8 {[%emt 0:01:28]} Rxe8 {[%emt 0:00:15]} 24. Rd1 {[%emt 0:09:18]} Bxf2 {[%emt 0:03:59]} 25. Rd2 {[%emt 0:07:03]} Qf1+ {[%emt 0:00:32]} 26. Kh2 {[%emt 0:00:57]} Qg1# {[%emt 0:00:20]} 0-1

[Event "CZE-ch Youth G10-G12-G14 2022"]
[Site "Luhacovice"]
[Date "2022.03.12"]
[Round "1.5"]
[White "Janouskova, Eliska"]
[Black "Ramseier, Jana S."]
[Result "1-0"]
[ECO "B32"]
[WhiteElo "1167"]
[BlackElo "2090"]
[Annotator "ChessBase"]
[PlyCount "57"]
[EventDate "2022.03.12"]
[EventType "swiss"]
[EventCountry "CZE"]
[SourceTitle "playchess.com"]
[Source "ChessBase"]
[SourceQuality "1"]
[TimeControl "40/5400+30:1800+30"]

1. e4 {[%emt 0:00:11]} c5 {[%emt 0:00:17]} 2. d4 {[%emt 0:00:40]} d6 {[%emt 0:00:27]} 3. Nf3 {[%emt 0:01:40]} Nc6 {[%emt 0:00:24]} 4. d5 {[%emt 0:02:15]} Nd4 {[%emt 0:01:50]} 5. Nxd4 {[%emt 0:01:51]} cxd4 {[%emt 0:00:32]} 6. Qxd4 {[%emt 0:01:26]} e5 {[%emt 0:00:51]} 7. dxe6 {[%emt 0:00:24]} fxe6 {[%emt 0:01:02]} 8. Nc3 {[%emt 0:01:13]} Nf6 {[%emt 0:00:53]} 9. Bc4 {[%emt 0:02:36]} e5 {[%emt 0:01:28]} 10. Qd3 {[%emt 0:02:30]} Qb6 {[%emt 0:01:16]} 11. O-O {[%emt 0:02:15]} Bd7 {[%emt 0:01:31]} 12. Nd5 {[%emt 0:01:33]} Nxd5 {[%emt 0:01:27]} 13. Qxd5 {[%emt 0:00:33]} O-O-O {[%emt 0:01:14]} 14. Be3 {[%emt 0:01:46]} Qc6 {[%emt 0:01:08]} 15. Qd3 {[%emt 0:03:13]} Be7 {[%emt 0:02:54]} 16. Bd5 {[%emt 0:02:24]} Qa6 {[%emt 0:00:35]} 17. Qc3+ {[%emt 0:02:14]} Kb8 {[%emt 0:00:40]} 18. b4 {[%emt 0:02:07]} Rhf8 {[%emt 0:02:01]} 19. a4 {[%emt 0:05:49]} Rc8 {[%emt 0:00:23]} 20. Qb3 {[%emt 0:01:34]} h6 {[%emt 0:01:10]} 21. c4 {[%emt 0:03:10]} Rfd8 {[%emt 0:02:34]} 22. a5 {[%emt 0:01:08]} Bg5 {[%emt 0:01:10]} 23. b5 {[%emt 0:00:29]} Qxa5 {[%emt 0:01:45]} 24. Rxa5 {[%emt 0:00:17]} b6 {[%emt 0:00:20]} 25. Bxb6 {[%emt 0:00:31]} axb6 {[%emt 0:00:45]} 26. Ra8+ {[%emt 0:00:50]} Kc7 {[%emt 0:00:16]} 27. Ra7+ {[%emt 0:00:09]} Kb8 {[%emt 0:01:07]} 28. Rb7+ {[%emt 0:00:11]} Ka8 {[%emt 0:01:35]} 29. Qa4# {[%emt 0:00:12]} 1-0

[Event "CZE-ch Youth G10-G12-G14 2022"]
[Site "Luhacovice"]
[Date "2022.03.12"]
[Round "1.6"]
[White "Stepankova Linda"]
[Black "Lickova, Anna"]
[Result "1-0"]
[ECO "C68"]
[WhiteElo "1000"]
[BlackElo "1016"]
[Annotator "NA"]
[PlyCount "81"]
[EventDate "2022.03.12"]
[EventType "swiss"]
[EventCountry "CZE"]
[SourceTitle "playchess.com"]
[Source "ChessBase"]
[SourceQuality "1"]
[TimeControl "40/5400+30:1800+30"]

1. e4 {[%emt 0:00:05]} e5 {[%emt 0:00:04]} 2. Nf3 {[%emt 0:00:02]} Nc6 {[%emt 0:00:12]} 3. Bb5 {[%emt 0:00:03]} a6 {[%emt 0:01:48]} 4. Bxc6 {[%emt 0:00:49]} dxc6 {[%emt 0:01:35]} 5. Nc3 {[%emt 0:00:30]} Bd6 {[%emt 0:01:34]} 6. d3 {[%emt 0:00:34]} h6 {[%emt 0:02:23]} 7. O-O {[%emt 0:01:22]} Nf6 {[%emt 0:01:28]} 8. h3 {[%emt 0:01:28]} Be6 {[%emt 0:01:55]} 9. Be3 {[%emt 0:00:27]} Qe7 {[%emt 0:03:12]} 10. d4 {[%emt 0:01:53]} Bd7 {[%emt 0:05:08]} 11. dxe5 {[%emt 0:03:04]} Bxe5 {[%emt 0:01:02]} 12. Nxe5 {[%emt 0:01:16]} Qxe5 {[%emt 0:01:29]} 13. Qd4 {[%emt 0:01:33]} Qe6 {[%emt 0:06:32]} 14. Bf4 {[%emt 0:04:14]} Rc8 {[%emt 0:01:26]} 15. Rfe1 {[%emt 0:02:13]} O-O {[%emt 0:00:19]} 16. Qa7 {[%emt 0:02:23]} b5 {[%emt 0:11:21]} 17. a4 {[%emt 0:07:21]} Ne8 {[%emt 0:07:45]} 18. Qxa6 {[%emt 0:06:59]} Nd6 {[%emt 0:03:28]} 19. Qa7 {[%emt 0:03:16]} b4 {[%emt 0:03:47]} 20. Na2 {[%emt 0:02:20]} Ra8 {[%emt 0:04:19]} 21. Qxc7 {[%emt 0:01:57]} Nc8 {[%emt 0:06:31]} 22. Nxb4 {[%emt 0:01:44]} g5 {[%emt 0:05:32]} 23. Bg3 {[%emt 0:01:35]} h5 {[%emt 0:01:24]} 24. h4 {[%emt 0:03:07]} gxh4 {[%emt 0:00:20]} 25. Bxh4 {[%emt 0:00:21]} Kh7 {[%emt 0:01:55]} 26. b3 {[%emt 0:05:53]} Rg8 {[%emt 0:02:29]} 27. Kf1 {[%emt 0:03:38]} Qg6 {[%emt 0:01:20]} 28. Qxd7 {[%emt 0:01:35]} Qxg2+ {[%emt 0:00:44]} 29. Ke2 {[%emt 0:00:33]} Qxe4+ {[%emt 0:00:11]} 30. Kd1 {[%emt 0:04:23]} Qxh4 {[%emt 0:01:09]} 31. Qxf7+ {[%emt 0:01:45]} Kh8 {[%emt 0:02:06]} 32. Nxc6 {[%emt 0:07:13]} Qg4+ {[%emt 0:02:00]} 33. f3 {[%emt 0:03:05]} Qg5 {[%emt 0:02:18]} 34. Ke2 {[%emt 0:02:36]} Nd6 {[%emt 0:01:01]} 35. Qe6 {[%emt 0:02:19]} Rae8 {[%emt 0:00:32]} 36. Kd3 {[%emt 0:02:12]} Rxe6 {[%emt 0:00:18]} 37. a5 {[%emt 0:01:34]} Qb5+ {[%emt 0:00:43]} 38. c4 {[%emt 0:00:35]} Qxb3+ {[%emt 0:00:13]} 39. Kd2 {[%emt 0:01:20]} Nxc4+ {[%emt 0:00:11]} 40. Kc1 {[%emt 0:00:59]} Qc3+ {[%emt 0:00:07]} 41. Kb1 {[%emt 0:30:43]} 1-0

[Event "CZE-ch Youth G10-G12-G14 2022"]
[Site "Luhacovice"]
[Date "2022.03.12"]
[Round "1.7"]
[White "Jenikova Sabina"]
[Black "Tarielasvili Kira"]
[Result "1-0"]
[ECO "D00"]
[WhiteElo "1076"]
[BlackElo "1000"]
[Annotator "NA"]
[PlyCount "49"]
[EventDate "2022.03.12"]
[EventType "swiss"]
[EventCountry "CZE"]
[SourceTitle "playchess.com"]
[Source "ChessBase"]
[SourceQuality "1"]
[TimeControl "40/5400+30:1800+30"]

1. d4 {[%emt 0:00:09]} d5 {[%emt 0:01:51]} 2. Nc3 {[%emt 0:00:30]} Nf6 {[%emt 0:00:30]} 3. Bf4 {[%emt 0:00:30]} Nc6 {[%emt 0:00:30]} 4. Nb5 {[%emt 0:00:30]} Bf5 {[%emt 0:00:30]} 5. Nxc7+ {[%emt 0:00:25]} Kd7 {[%emt 0:01:17]} 6. Nxa8 {[%emt 0:00:31]} Qxa8 {[%emt 0:00:30]} 7. Nf3 {[%emt 0:00:05]} e6 {[%emt 0:00:46]} 8. e3 {[%emt 0:00:06]} Bb4+ {[%emt 0:01:33]} 9. c3 {[%emt 0:00:31]} Be7 {[%emt 0:00:30]} 10. Bb5 {[%emt 0:00:27]} Bg4 {[%emt 0:04:57]} 11. Bxc6+ {[%emt 0:00:31]} bxc6 {[%emt 0:00:30]} 12. h3 {[%emt 0:00:30]} Bf5 {[%emt 0:00:30]} 13. O-O {[%emt 0:00:30]} Ne4 {[%emt 0:00:30]} 14. Ne5+ {[%emt 0:00:30]} Kc7 {[%emt 0:00:30]} 15. Nxf7+ {[%emt 0:00:11]} Kd7 {[%emt 0:00:27]} 16. Nxh8 {[%emt 0:00:00]} Qxh8 {[%emt 0:00:19]} 17. Qb3 {[%emt 0:00:00]} Nd2 {[%emt 0:00:36]} 18. Qb7+ {[%emt 0:00:00]} Ke8 {[%emt 0:03:36]} 19. Qxc6+ {[%emt 0:00:00]} Kf7 {[%emt 0:00:30]} 20. Rfd1 {[%emt 0:00:00]} Ne4 {[%emt 0:00:30]} 21. Qc7 {[%emt 0:00:00]} Qd8 {[%emt 0:02:03]} 22. f3 {[%emt 0:00:09]} Nf6 {[%emt 0:01:06]} 23. Qb7 {[%emt 0:00:05]} Nd7 {[%emt 0:00:30]} 24. Re1 {[%emt 0:00:19]} Bg6 {[%emt 0:02:09]} 25. Rf1 {[%emt 0:00:00]} 1-0

[Event "CZE-ch Youth G10-G12-G14 2022"]
[Site "Luhacovice"]
[Date "2022.03.12"]
[Round "1.8"]
[White "Topencikova Ellen"]
[Black "Hujova Tess"]
[Result "0-1"]
[ECO "B12"]
[WhiteElo "1000"]
[BlackElo "1000"]
[Annotator "NA"]
[PlyCount "72"]
[EventDate "2022.03.12"]
[EventType "swiss"]
[EventCountry "CZE"]
[SourceTitle "playchess.com"]
[Source "ChessBase"]
[SourceQuality "1"]
[TimeControl "40/5400+30:1800+30"]

1. e4 {[%emt 0:00:06]} c6 {[%emt 0:00:11]} 2. d4 {[%emt 0:00:39]} d5 {[%emt 0:00:12]} 3. e5 {[%emt 0:00:13]} Bf5 {[%emt 0:00:32]} 4. Bd3 {[%emt 0:00:35]} e6 {[%emt 0:00:36]} 5. Bxf5 {[%emt 0:00:23]} exf5 {[%emt 0:00:15]} 6. Nf3 {[%emt 0:00:28]} Ne7 {[%emt 0:00:23]} 7. O-O {[%emt 0:00:19]} Ng6 {[%emt 0:00:29]} 8. Bg5 {[%emt 0:00:41]} Be7 {[%emt 0:00:33]} 9. Nc3 {[%emt 0:00:48]} O-O {[%emt 0:01:01]} 10. Bxe7 {[%emt 0:01:14]} Qxe7 {[%emt 0:02:23]} 11. h3 {[%emt 0:01:20]} Nd7 {[%emt 0:01:16]} 12. Qd2 {[%emt 0:01:05]} f4 {[%emt 0:02:05]} 13. Rfe1 {[%emt 0:01:30]} Rfe8 {[%emt 0:04:00]} 14. Qe2 {[%emt 0:00:33]} Nb6 {[%emt 0:00:30]} 15. g3 {[%emt 0:02:03]} Rac8 {[%emt 0:03:41]} 16. h4 {[%emt 0:01:53]} fxg3 {[%emt 0:01:41]} 17. fxg3 {[%emt 0:01:19]} Qe6 {[%emt 0:02:24]} 18. Ng5 {[%emt 0:00:46]} Qd7 {[%emt 0:00:25]} 19. h5 {[%emt 0:01:21]} Nf8 {[%emt 0:00:38]} 20. h6 {[%emt 0:01:02]} gxh6 {[%emt 0:01:37]} 21. e6 {[%emt 0:01:13]} fxe6 {[%emt 0:00:52]} 22. Qg4 {[%emt 0:00:44]} hxg5 {[%emt 0:00:56]} 23. Qxg5+ {[%emt 0:00:16]} Qg7 {[%emt 0:00:38]} 24. Qh4 {[%emt 0:01:07]} Ng6 {[%emt 0:01:30]} 25. Qh3 {[%emt 0:01:39]} Qxd4+ {[%emt 0:00:40]} 26. Kg2 {[%emt 0:00:47]} e5 {[%emt 0:03:15]} 27. Rh1 {[%emt 0:00:54]} Re7 {[%emt 0:00:43]} 28. Qh5 {[%emt 0:01:57]} Rf8 {[%emt 0:00:53]} 29. Raf1 {[%emt 0:00:48]} Qd2+ {[%emt 0:00:41]} 30. Kg1 {[%emt 0:00:45]} Rxf1+ {[%emt 0:00:30]} 31. Kxf1 {[%emt 0:00:28]} Rf7+ {[%emt 0:00:30]} 32. Kg1 {[%emt 0:00:36]} Qe3+ {[%emt 0:00:12]} 33. Kh2 {[%emt 0:00:17]} Rf2+ {[%emt 0:00:55]} 34. Kh3 {[%emt 0:00:28]} Rxc2 {[%emt 0:00:20]} 35. Kg4 {[%emt 0:00:51]} Nf8 {[%emt 0:00:00]} 36. Na4 {[%emt 0:01:32]} Rc4+ {[%emt 0:00:02]} 0-1

[Event "CZE-ch Youth G10-G12-G14 2022"]
[Site "Luhacovice"]
[Date "2022.03.12"]
[Round "1.9"]
[White "Koutna Simona"]
[Black "Vanickova Natalie"]
[Result "1-0"]
[ECO "B02"]
[WhiteElo "1000"]
[BlackElo "1000"]
[Annotator "NA"]
[PlyCount "63"]
[EventDate "2022.03.12"]
[EventType "swiss"]
[EventCountry "CZE"]
[SourceTitle "playchess.com"]
[Source "ChessBase"]
[SourceQuality "1"]
[TimeControl "40/5400+30:1800+30"]

1. e4 {[%emt 0:00:05]} d5 {[%emt 0:00:01]} 2. exd5 {[%emt 0:00:11]} Nf6 {[%emt 0:00:22]} 3. Nc3 {[%emt 0:00:33]} Nxd5 {[%emt 0:00:30]} 4. Nxd5 {[%emt 0:00:20]} Qxd5 {[%emt 0:00:23]} 5. d4 {[%emt 0:01:00]} Bf5 {[%emt 0:00:56]} 6. c4 {[%emt 0:01:28]} Qd7 {[%emt 0:01:38]} 7. Nf3 {[%emt 0:00:34]} Nc6 {[%emt 0:02:07]} 8. Be2 {[%emt 0:02:09]} e6 {[%emt 0:03:11]} 9. O-O {[%emt 0:01:22]} Bb4 {[%emt 0:03:36]} 10. a3 {[%emt 0:01:29]} Ba5 {[%emt 0:00:53]} 11. b4 {[%emt 0:01:16]} O-O {[%emt 0:04:00]} 12. Qa4 {[%emt 0:03:27]} b6 {[%emt 0:03:41]} 13. bxa5 {[%emt 0:01:54]} bxa5 {[%emt 0:00:45]} 14. Rb1 {[%emt 0:00:36]} Bxb1 {[%emt 0:02:01]} 15. Rd1 {[%emt 0:06:00]} Be4 {[%emt 0:05:55]} 16. Bd2 {[%emt 0:01:20]} Qd6 {[%emt 0:04:55]} 17. g3 {[%emt 0:02:50]} Nxd4 {[%emt 0:06:30]} 18. Nxd4 {[%emt 0:04:35]} Qxd4 {[%emt 0:01:25]} 19. Qxa5 {[%emt 0:01:41]} c6 {[%emt 0:01:27]} 20. Bb4 {[%emt 0:01:37]} Qf6 {[%emt 0:03:20]} 21. Bxf8 {[%emt 0:00:47]} Rxf8 {[%emt 0:00:22]} 22. Qxa7 {[%emt 0:00:52]} Qh6 {[%emt 0:01:33]} 23. Qc7 {[%emt 0:01:31]} Qh3 {[%emt 0:01:45]} 24. f3 {[%emt 0:01:05]} Bc2 {[%emt 0:02:53]} 25. Rd8 {[%emt 0:01:18]} h6 {[%emt 0:01:05]} 26. Rxf8+ {[%emt 0:01:09]} Kh7 {[%emt 0:00:25]} 27. Qxc6 {[%emt 0:02:07]} Qf5 {[%emt 0:01:00]} 28. c5 {[%emt 0:01:30]} Bb3 {[%emt 0:01:02]} 29. Qd6 {[%emt 0:00:55]} Qb1+ {[%emt 0:00:52]} 30. Kf2 {[%emt 0:01:28]} Qc2 {[%emt 0:01:46]} 31. Qd3+ {[%emt 0:00:50]} Qxd3 {[%emt 0:01:22]} 32. Bxd3+ {[%emt 0:00:00]} 1-0